[Event "Early-Titled-Tuesday-Blitz-October-24-2023"]
[Site "Chess.com"]
[Date "2023.10.24"]
[Round "8"]
[White "Nick12772"]
[Black "cristiano78"]
[Result "1-0"]
[WhiteElo "2376"]
[BlackElo "2252"]
[TimeControl "180+1"]
[EndTime "9:26:13 PDT"]
[Termination "Nick12772 won by resignation"]

1. Nf3 {[%clk 0:03:00.9]} 1... Nf6 {[%clk 0:02:36.4]} 2. g3 {[%clk 0:03:01.1]}
2... g6 {[%clk 0:02:36.5]} 3. Bg2 {[%clk 0:03:02]} 3... Bg7 {[%clk 0:02:37]} 4.
O-O {[%clk 0:03:02.7]} 4... O-O {[%clk 0:02:37.7]} 5. c4 {[%clk 0:03:03.5]} 5...
Nc6 {[%clk 0:02:37.6]} 6. Nc3 {[%clk 0:03:04.2]} 6... d5 {[%clk 0:02:38.1]} 7.
cxd5 {[%clk 0:02:53.6]} 7... Nxd5 {[%clk 0:02:39]} 8. Nxd5 {[%clk 0:02:46.2]}
8... Qxd5 {[%clk 0:02:38.5]} 9. d3 {[%clk 0:02:47.1]} 9... Rd8 {[%clk
0:02:35.7]} 10. a3 {[%clk 0:02:47]} 10... a5 {[%clk 0:02:35.2]} 11. Qc2 {[%clk
0:02:45.9]} 11... h6 {[%clk 0:02:30.8]} 12. Bd2 {[%clk 0:02:45.8]} 12... Be6
{[%clk 0:02:28.1]} 13. Bc3 {[%clk 0:02:45.3]} 13... Qd7 {[%clk 0:02:23]} 14.
Bxg7 {[%clk 0:02:43.6]} 14... Kxg7 {[%clk 0:02:23.9]} 15. Qc3+ {[%clk
0:02:41.2]} 15... Kh7 {[%clk 0:02:23.9]} 16. Ne5 {[%clk 0:02:37.7]} 16... Nxe5
{[%clk 0:02:23.1]} 17. Qxe5 {[%clk 0:02:38.6]} 17... c6 {[%clk 0:02:15.6]} 18.
Rac1 {[%clk 0:02:31.3]} 18... f6 {[%clk 0:02:10.9]} 19. Qe3 {[%clk 0:02:27.3]}
19... Kg7 {[%clk 0:02:11.4]} 20. Rc5 {[%clk 0:02:13.9]} 20... a4 {[%clk
0:02:08.1]} 21. Rfc1 {[%clk 0:02:12.9]} 21... Bb3 {[%clk 0:02:02.6]} 22. h4
{[%clk 0:02:08.8]} 22... e5 {[%clk 0:02:00]} 23. Kh2 {[%clk 0:02:07.9]} 23...
Qd4 {[%clk 0:01:57.5]} 24. Qxd4 {[%clk 0:01:58.3]} 24... Rxd4 {[%clk 0:01:56.5]}
25. Kg1 {[%clk 0:01:48.1]} 25... Rad8 {[%clk 0:01:54.8]} 26. Kf1 {[%clk
0:01:47.6]} 26... Bd5 {[%clk 0:01:52.3]} 27. Bxd5 {[%clk 0:01:46.7]} 27... R8xd5
{[%clk 0:01:52.1]} 28. Rxd5 {[%clk 0:01:46.5]} 28... Rxd5 {[%clk 0:01:52]} 29.
Rc4 {[%clk 0:01:46.8]} 29... Rd4 {[%clk 0:01:49.1]} 30. Rxd4 {[%clk 0:01:38.4]}
30... exd4 {[%clk 0:01:48.9]} 31. Ke1 {[%clk 0:01:39.3]} 31... Kf7 {[%clk
0:01:48.9]} 32. Kd2 {[%clk 0:01:38.7]} 32... Ke6 {[%clk 0:01:48.4]} 33. Kc2
{[%clk 0:01:26]} 33... f5 {[%clk 0:01:40]} 34. b3 {[%clk 0:01:23.1]} 34... axb3+
{[%clk 0:01:37.2]} 35. Kxb3 {[%clk 0:01:24]} 35... Kd5 {[%clk 0:01:27.3]} 36.
Kb4 {[%clk 0:01:24.2]} 36... b6 {[%clk 0:01:26.6]} 37. a4 {[%clk 0:01:20.4]}
37... g5 {[%clk 0:01:26.1]} 38. hxg5 {[%clk 0:01:16.7]} 38... hxg5 {[%clk
0:01:25.3]} 39. e3 {[%clk 0:01:00.8]} 39... g4 {[%clk 0:01:08.2]} 40. a5 {[%clk
0:00:49.2]} 40... bxa5+ {[%clk 0:01:04.4]} 41. Kxa5 {[%clk 0:00:50.1]} 41... Kc5
{[%clk 0:00:47.9]} 42. Ka4 {[%clk 0:00:45.3]} 42... dxe3 {[%clk 0:00:34]} 43.
fxe3 {[%clk 0:00:46.2]} 43... f4 {[%clk 0:00:19.1]} 44. exf4 {[%clk 0:00:43.3]}
44... Kd4 {[%clk 0:00:19.5]} 45. Kb4 {[%clk 0:00:30.4]} 45... c5+ {[%clk
0:00:16.4]} 46. Kb5 {[%clk 0:00:30.8]} 46... Kxd3 {[%clk 0:00:16.4]} 47. Kxc5
{[%clk 0:00:31.4]} 47... Ke4 {[%clk 0:00:14.7]} 48. Kd6 {[%clk 0:00:29]} 48...
Kf3 {[%clk 0:00:14.9]} 49. f5 {[%clk 0:00:29.5]} 49... Kxg3 {[%clk 0:00:15.8]}
50. f6 {[%clk 0:00:30.4]} 50... Kh2 {[%clk 0:00:16.4]} 51. f7 {[%clk 0:00:31.3]}
51... g3 {[%clk 0:00:17.2]} 52. f8=Q {[%clk 0:00:32.1]} 52... g2 {[%clk
0:00:17.6]} 53. Qf2 {[%clk 0:00:31.6]} 53... Kh1 {[%clk 0:00:17.6]} 54. Qf3
{[%clk 0:00:30.9]} 54... Kh2 {[%clk 0:00:17.5]} 55. Qh5+ {[%clk 0:00:31]} 55...
Kg3 {[%clk 0:00:17.2]} 56. Qg5+ {[%clk 0:00:30.3]} 56... Kf2 {[%clk 0:00:17.6]}
57. Qf4+ {[%clk 0:00:29.2]} 57... Ke1 {[%clk 0:00:17.5]} 58. Qe3+ {[%clk
0:00:28.7]} 58... Kf1 {[%clk 0:00:18.4]} 59. Qf3+ {[%clk 0:00:28.5]} 59... Kg1
{[%clk 0:00:19.3]} 60. Ke5 {[%clk 0:00:28.2]} 60... Kh2 {[%clk 0:00:20.2]} 61.
Qh5+ {[%clk 0:00:28.1]} 61... Kg3 {[%clk 0:00:20.2]} 62. Qg5+ {[%clk 0:00:28.7]}
62... Kf2 {[%clk 0:00:20.4]} 63. Qf4+ {[%clk 0:00:26.8]} 63... Ke1 {[%clk
0:00:20.8]} 64. Qe3+ {[%clk 0:00:25.8]} 64... Kf1 {[%clk 0:00:20.4]} 65. Qf3+
{[%clk 0:00:26.5]} 65... Kg1 {[%clk 0:00:19.8]} 66. Kf4 {[%clk 0:00:25]} 66...
Kh2 {[%clk 0:00:20.7]} 67. Qg3+ {[%clk 0:00:23.4]} 67... Kh1 {[%clk 0:00:20.2]}
68. Qh3+ {[%clk 0:00:19.4]} 68... Kg1 {[%clk 0:00:21.1]} 69. Kf3 {[%clk
0:00:17.1]} 69... Kf1 {[%clk 0:00:20.7]} 70. Qxg2+ {[%clk 0:00:17.4]} 1-0

[Event "Early-Titled-Tuesday-Blitz-October-24-2023"]
[Site "Chess.com"]
[Date "2023.10.24"]
[Round "8"]
[White "Sjakkerntobi"]
[Black "Russian_berezka"]
[Result "1-0"]
[WhiteElo "2502"]
[BlackElo "2664"]
[TimeControl "180+1"]
[EndTime "9:26:14 PDT"]
[Termination "Sjakkerntobi won by resignation"]

1. e4 {[%clk 0:03:00.9]} 1... e5 {[%clk 0:02:58.9]} 2. Nf3 {[%clk 0:03:00.1]}
2... Nc6 {[%clk 0:02:59.4]} 3. Bc4 {[%clk 0:03:00.6]} 3... Bc5 {[%clk
0:02:58.9]} 4. c3 {[%clk 0:03:01.1]} 4... Nf6 {[%clk 0:02:58.8]} 5. d3 {[%clk
0:03:01.5]} 5... d6 {[%clk 0:02:57.5]} 6. O-O {[%clk 0:03:02]} 6... h6 {[%clk
0:02:57.4]} 7. Re1 {[%clk 0:03:00.8]} 7... a6 {[%clk 0:02:57.5]} 8. a4 {[%clk
0:03:00.2]} 8... Ba7 {[%clk 0:02:57.3]} 9. Nbd2 {[%clk 0:02:59]} 9... Ng4 {[%clk
0:02:48.7]} 10. Re2 {[%clk 0:02:58.4]} 10... Qf6 {[%clk 0:02:44.4]} 11. Nf1
{[%clk 0:02:53.2]} 11... g5 {[%clk 0:02:38.5]} 12. Ne3 {[%clk 0:02:39.5]} 12...
Nxe3 {[%clk 0:02:29.9]} 13. Bxe3 {[%clk 0:02:40.4]} 13... Bg4 {[%clk 0:02:29.7]}
14. Re1 {[%clk 0:02:40.3]} 14... Bxf3 {[%clk 0:02:24.4]} 15. Qxf3 {[%clk
0:02:40.5]} 15... Qxf3 {[%clk 0:02:23.8]} 16. gxf3 {[%clk 0:02:41.4]} 16... Bxe3
{[%clk 0:02:22.2]} 17. fxe3 {[%clk 0:02:41.4]} 17... Ke7 {[%clk 0:02:12.6]} 18.
b4 {[%clk 0:02:39.2]} 18... Rhg8 {[%clk 0:02:00.2]} 19. h3 {[%clk 0:02:37.7]}
19... h5 {[%clk 0:02:00]} 20. Kf2 {[%clk 0:02:36.4]} 20... Rg6 {[%clk 0:01:57]}
21. Rg1 {[%clk 0:02:34.6]} 21... Nd8 {[%clk 0:01:52.6]} 22. Ke2 {[%clk
0:02:29.8]} 22... c6 {[%clk 0:01:40.2]} 23. b5 {[%clk 0:02:18.2]} 23... a5
{[%clk 0:01:23.8]} 24. bxc6 {[%clk 0:02:15.4]} 24... bxc6 {[%clk 0:01:22.1]} 25.
Rab1 {[%clk 0:02:15.7]} 25... Kd7 {[%clk 0:01:15.2]} 26. Rb2 {[%clk 0:02:03.1]}
26... Kc7 {[%clk 0:01:14.4]} 27. d4 {[%clk 0:01:52.2]} 27... Ne6 {[%clk
0:00:49.5]} 28. Bxe6 {[%clk 0:01:50.5]} 28... fxe6 {[%clk 0:00:47.2]} 29. Rgb1
{[%clk 0:01:50.3]} 29... Ra7 {[%clk 0:00:46.3]} 30. Rb8 {[%clk 0:01:50.3]} 30...
Rg7 {[%clk 0:00:35.8]} 31. Rh8 {[%clk 0:01:44.6]} 31... h4 {[%clk 0:00:35.4]}
32. Rbb8 {[%clk 0:01:43.7]} 32... Rb7 {[%clk 0:00:34.7]} 33. Rhc8+ {[%clk
0:01:43.5]} 33... Kb6 {[%clk 0:00:34.3]} 34. Rxb7+ {[%clk 0:01:44.4]} 34... Kxb7
{[%clk 0:00:33.8]} 35. Re8 {[%clk 0:01:42.5]} 35... exd4 {[%clk 0:00:33.6]} 36.
exd4 {[%clk 0:01:41.1]} 36... Rg6 {[%clk 0:00:33.9]} 37. Kd3 {[%clk 0:01:40.5]}
37... Rf6 {[%clk 0:00:33.5]} 38. Ke3 {[%clk 0:01:40.3]} 38... Kb6 {[%clk
0:00:30.1]} 39. Rg8 {[%clk 0:01:24.5]} 39... c5 {[%clk 0:00:20.5]} 40. Rxg5
{[%clk 0:01:23.7]} 40... cxd4+ {[%clk 0:00:13.1]} 41. cxd4 {[%clk 0:01:24.6]}
41... Rf8 {[%clk 0:00:12.7]} 42. Rb5+ {[%clk 0:01:24.6]} 42... Ka6 {[%clk
0:00:12.4]} 43. Rh5 {[%clk 0:01:19.9]} 43... Rc8 {[%clk 0:00:09.4]} 44. Rh6
{[%clk 0:01:19.2]} 44... Rc4 {[%clk 0:00:07.4]} 45. Rxe6 {[%clk 0:01:19.1]}
45... Rxa4 {[%clk 0:00:08]} 46. Rxd6+ {[%clk 0:01:19.8]} 46... Kb5 {[%clk
0:00:08.4]} 47. e5 {[%clk 0:01:20.5]} 47... Ra1 {[%clk 0:00:07.8]} 48. e6 {[%clk
0:01:18.1]} 48... a4 {[%clk 0:00:08.1]} 49. d5 {[%clk 0:01:03]} 49... a3 {[%clk
0:00:07.2]} 50. Rd8 {[%clk 0:00:54.5]} 50... a2 {[%clk 0:00:03.6]} 51. Ra8
{[%clk 0:00:51.9]} 51... Re1+ {[%clk 0:00:03.6]} 52. Kd4 {[%clk 0:00:52.1]}
52... a1=Q+ {[%clk 0:00:04.5]} 53. Rxa1 {[%clk 0:00:51.8]} 53... Rxa1 {[%clk
0:00:05.4]} 54. f4 {[%clk 0:00:33.2]} 54... Rd1+ {[%clk 0:00:05.1]} 55. Ke4
{[%clk 0:00:29]} 55... Kc5 {[%clk 0:00:06]} 56. f5 {[%clk 0:00:27.5]} 56... Kd6
{[%clk 0:00:05.2]} 57. f6 {[%clk 0:00:23.4]} 57... Re1+ {[%clk 0:00:04.1]} 58.
Kf5 {[%clk 0:00:22.7]} 58... Kxd5 {[%clk 0:00:02.5]} 59. e7 {[%clk 0:00:21.3]}
59... Kd6 {[%clk 0:00:01.9]} 60. Kg6 {[%clk 0:00:18.1]} 60... Kd7 {[%clk
0:00:02.1]} 61. Kf7 {[%clk 0:00:17.6]} 61... Rg1 {[%clk 0:00:01.8]} 62. e8=Q+
{[%clk 0:00:17]} 1-0

[Event "Early-Titled-Tuesday-Blitz-October-24-2023"]
[Site "Chess.com"]
[Date "2023.10.24"]
[Round "8"]
[White "Sofia_Blokhin"]
[Black "FlemingA"]
[Result "0-1"]
[WhiteElo "2258"]
[BlackElo "2446"]
[TimeControl "180+1"]
[EndTime "9:26:14 PDT"]
[Termination "FlemingA won on time"]

1. d4 {[%clk 0:03:00.9]} 1... e6 {[%clk 0:02:51.6]} 2. c4 {[%clk 0:02:59.7]}
2... c5 {[%clk 0:02:51.5]} 3. d5 {[%clk 0:02:58.9]} 3... exd5 {[%clk 0:02:50.9]}
4. cxd5 {[%clk 0:02:58.8]} 4... Nf6 {[%clk 0:02:51.6]} 5. Nc3 {[%clk 0:02:58.9]}
5... g6 {[%clk 0:02:50.7]} 6. e4 {[%clk 0:02:58.5]} 6... d6 {[%clk 0:02:50.9]}
7. Bf4 {[%clk 0:02:57.5]} 7... Bg7 {[%clk 0:02:48.9]} 8. h3 {[%clk 0:02:56.5]}
8... O-O {[%clk 0:02:49]} 9. Nf3 {[%clk 0:02:57.2]} 9... Re8 {[%clk 0:02:49.2]}
10. Nd2 {[%clk 0:02:57]} 10... a6 {[%clk 0:02:48.5]} 11. a4 {[%clk 0:02:54.9]}
11... Bf5 {[%clk 0:02:26.8]} 12. Bd3 {[%clk 0:02:45.6]} 12... Nxe4 {[%clk
0:02:21.6]} 13. Ncxe4 {[%clk 0:02:39]} 13... Bxe4 {[%clk 0:02:21.1]} 14. Bxe4
{[%clk 0:02:32.8]} 14... f5 {[%clk 0:02:19.5]} 15. O-O {[%clk 0:02:25.2]} 15...
fxe4 {[%clk 0:02:18.2]} 16. Qc2 {[%clk 0:02:19.8]} 16... Qf6 {[%clk 0:02:17.4]}
17. Bg3 {[%clk 0:02:12.5]} 17... Nd7 {[%clk 0:01:21.1]} 18. Nxe4 {[%clk
0:02:07.8]} 18... Qf5 {[%clk 0:01:21.6]} 19. f3 {[%clk 0:02:02.8]} 19... Bd4+
{[%clk 0:01:20.7]} 20. Kh1 {[%clk 0:01:58.1]} 20... Qxd5 {[%clk 0:01:21]} 21.
Nxd6 {[%clk 0:01:53.2]} 21... Re6 {[%clk 0:01:12.8]} 22. Ne4 {[%clk 0:01:49.9]}
22... Rae8 {[%clk 0:01:12.7]} 23. Rad1 {[%clk 0:01:47.3]} 23... Nf6 {[%clk
0:01:10.8]} 24. Nxf6+ {[%clk 0:01:22.6]} 24... Rxf6 {[%clk 0:01:10.7]} 25. Rfe1
{[%clk 0:01:22.8]} 25... Rxe1+ {[%clk 0:01:04.2]} 26. Rxe1 {[%clk 0:01:22.4]}
26... Re6 {[%clk 0:01:05.1]} 27. Rxe6 {[%clk 0:01:17.9]} 27... Qxe6 {[%clk
0:01:06]} 28. b3 {[%clk 0:01:10]} 28... Qe3 {[%clk 0:01:02.5]} 29. Qc4+ {[%clk
0:01:07.8]} 29... Kg7 {[%clk 0:01:01.1]} 30. Qf1 {[%clk 0:01:04]} 30... Qxb3
{[%clk 0:01:01.1]} 31. Bf2 {[%clk 0:00:55.6]} 31... Qxa4 {[%clk 0:00:54.1]} 32.
Bxd4+ {[%clk 0:00:55]} 32... Qxd4 {[%clk 0:00:53.9]} 33. Qb1 {[%clk 0:00:52.6]}
33... b5 {[%clk 0:00:50]} 34. Qa2 {[%clk 0:00:52.6]} 34... Qd1+ {[%clk
0:00:44.4]} 35. Kh2 {[%clk 0:00:46.5]} 35... Qd6+ {[%clk 0:00:45.3]} 36. Kh1
{[%clk 0:00:46.1]} 36... b4 {[%clk 0:00:43.3]} 37. Qa1+ {[%clk 0:00:44.3]} 37...
Kg8 {[%clk 0:00:26.1]} 38. Qa2+ {[%clk 0:00:41]} 38... Kf8 {[%clk 0:00:26.3]}
39. Qb2 {[%clk 0:00:37.5]} 39... Kf7 {[%clk 0:00:20]} 40. Qh8 {[%clk 0:00:36.5]}
40... Ke6 {[%clk 0:00:10.2]} 41. Qxh7 {[%clk 0:00:35.6]} 41... Kd5 {[%clk
0:00:10.5]} 42. Qb7+ {[%clk 0:00:33.6]} 42... Kd4 {[%clk 0:00:09.4]} 43. Qe4+
{[%clk 0:00:31.8]} 43... Kc3 {[%clk 0:00:10.1]} 44. Qe3+ {[%clk 0:00:29.5]}
44... Kb2 {[%clk 0:00:07.5]} 45. Qe2+ {[%clk 0:00:28.5]} 45... Ka3 {[%clk
0:00:05.4]} 46. Qe3+ {[%clk 0:00:27.7]} 46... b3 {[%clk 0:00:05.4]} 47. Qc1+
{[%clk 0:00:26.4]} 47... Kb4 {[%clk 0:00:04]} 48. Qe1+ {[%clk 0:00:22.2]} 48...
Kb5 {[%clk 0:00:02.9]} 49. Qe2+ {[%clk 0:00:22.1]} 49... c4 {[%clk 0:00:02.7]}
50. Qe8+ {[%clk 0:00:21.1]} 50... Kb4 {[%clk 0:00:03]} 51. Qe1+ {[%clk
0:00:17.8]} 51... c3 {[%clk 0:00:03.1]} 52. Qe4+ {[%clk 0:00:17.4]} 52... Ka3
{[%clk 0:00:03.7]} 53. Qb1 {[%clk 0:00:11.7]} 53... b2 {[%clk 0:00:03.2]} 54. h4
{[%clk 0:00:04.8]} 54... Qd2 {[%clk 0:00:03.6]} 55. Qxg6 {[%clk 0:00:02.2]}
55... Qc1+ {[%clk 0:00:03.1]} 56. Kh2 {[%clk 0:00:03.1]} 56... b1=Q {[%clk
0:00:03.7]} 57. Qxa6+ {[%clk 0:00:01.5]} 57... Kb2 {[%clk 0:00:04.4]} 0-1

[Event "Early-Titled-Tuesday-Blitz-October-24-2023"]
[Site "Chess.com"]
[Date "2023.10.24"]
[Round "8"]
[White "Mr_Lion22"]
[Black "Resignify"]
[Result "1/2-1/2"]
[WhiteElo "2480"]
[BlackElo "2317"]
[TimeControl "180+1"]
[EndTime "9:26:15 PDT"]
[Termination "Game drawn - insufficient material"]

1. d4 {[%clk 0:02:59.5]} 1... Nf6 {[%clk 0:02:59.8]} 2. c4 {[%clk 0:03:00.2]}
2... g6 {[%clk 0:03:00.2]} 3. Nc3 {[%clk 0:03:00.9]} 3... Bg7 {[%clk 0:03:00.6]}
4. e4 {[%clk 0:03:01.6]} 4... d6 {[%clk 0:03:00.7]} 5. Be2 {[%clk 0:03:02.3]}
5... O-O {[%clk 0:03:00.9]} 6. Be3 {[%clk 0:03:03]} 6... e5 {[%clk 0:03:00.9]}
7. d5 {[%clk 0:03:03]} 7... a5 {[%clk 0:02:59.4]} 8. g4 {[%clk 0:03:03.3]} 8...
Na6 {[%clk 0:02:59.2]} 9. h4 {[%clk 0:03:01.6]} 9... Nd7 {[%clk 0:02:52.1]} 10.
Qd2 {[%clk 0:02:57.9]} 10... f5 {[%clk 0:02:38.7]} 11. gxf5 {[%clk 0:02:57.8]}
11... gxf5 {[%clk 0:02:39.1]} 12. exf5 {[%clk 0:02:58.7]} 12... Ndc5 {[%clk
0:02:38]} 13. Nf3 {[%clk 0:02:53.8]} 13... Bxf5 {[%clk 0:02:34.3]} 14. Bh6
{[%clk 0:02:54.4]} 14... Bxh6 {[%clk 0:02:25.6]} 15. Qxh6 {[%clk 0:02:55.3]}
15... Qf6 {[%clk 0:02:23.7]} 16. Rg1+ {[%clk 0:02:51.7]} 16... Kh8 {[%clk
0:02:23.7]} 17. Qe3 {[%clk 0:02:48.1]} 17... Rg8 {[%clk 0:01:58.8]} 18. O-O-O
{[%clk 0:02:47.7]} 18... Rxg1 {[%clk 0:01:57.1]} 19. Rxg1 {[%clk 0:02:48.6]}
19... Rg8 {[%clk 0:01:53.5]} 20. Rxg8+ {[%clk 0:02:48.9]} 20... Kxg8 {[%clk
0:01:53]} 21. Kd2 {[%clk 0:02:00]} 21... h6 {[%clk 0:01:48.9]} 22. Ke1 {[%clk
0:01:55.5]} 22... Kg7 {[%clk 0:01:47.5]} 23. h5 {[%clk 0:01:46.8]} 23... Nb4
{[%clk 0:01:45.9]} 24. Kf1 {[%clk 0:01:39.2]} 24... Kh7 {[%clk 0:01:29.7]} 25.
Nd2 {[%clk 0:01:36.8]} 25... Nc2 {[%clk 0:01:20.9]} 26. Qg3 {[%clk 0:01:24.6]}
26... Nd4 {[%clk 0:01:17.3]} 27. a3 {[%clk 0:01:20.5]} 27... Nxe2 {[%clk
0:00:53]} 28. Kxe2 {[%clk 0:01:21.4]} 28... Bd3+ {[%clk 0:00:51.5]} 29. Ke1
{[%clk 0:00:50.3]} 29... Qf5 {[%clk 0:00:50.1]} 30. b4 {[%clk 0:00:49.6]} 30...
axb4 {[%clk 0:00:47.6]} 31. axb4 {[%clk 0:00:50.5]} 31... Nd7 {[%clk 0:00:44.2]}
32. Qh4 {[%clk 0:00:49.1]} 32... Nf6 {[%clk 0:00:41.3]} 33. Nb5 {[%clk
0:00:43.6]} 33... Nxh5 {[%clk 0:00:30.2]} 34. Qe7+ {[%clk 0:00:41.8]} 34... Kg6
{[%clk 0:00:23.3]} 35. Nxc7 {[%clk 0:00:42.5]} 35... Qf6 {[%clk 0:00:20.6]} 36.
Qe8+ {[%clk 0:00:31.6]} 36... Qf7 {[%clk 0:00:20.5]} 37. Qd8 {[%clk 0:00:26]}
37... Qf6 {[%clk 0:00:12.4]} 38. Qg8+ {[%clk 0:00:26]} 38... Qg7 {[%clk
0:00:11.2]} 39. Qe6+ {[%clk 0:00:22.6]} 39... Qf6 {[%clk 0:00:11]} 40. Qg4+
{[%clk 0:00:07.1]} 40... Qg5 {[%clk 0:00:11.1]} 41. Qxg5+ {[%clk 0:00:07.6]}
41... hxg5 {[%clk 0:00:11.3]} 42. Ne8 {[%clk 0:00:08.3]} 42... b5 {[%clk
0:00:04.1]} 43. c5 {[%clk 0:00:06.5]} 43... dxc5 {[%clk 0:00:03.1]} 44. bxc5
{[%clk 0:00:07.4]} 44... Kf7 {[%clk 0:00:02.8]} 45. Nd6+ {[%clk 0:00:06.7]}
45... Ke7 {[%clk 0:00:03]} 46. N2e4 {[%clk 0:00:04.7]} 46... Nf4 {[%clk
0:00:02]} 47. c6 {[%clk 0:00:02.8]} 47... Nxd5 {[%clk 0:00:02.1]} 48. Kd2 {[%clk
0:00:02.8]} 48... Bxe4 {[%clk 0:00:01.6]} 49. Nxe4 {[%clk 0:00:03.7]} 49... Kd8
{[%clk 0:00:01]} 50. Nxg5 {[%clk 0:00:03.9]} 50... Kc7 {[%clk 0:00:01.4]} 51.
Nf7 {[%clk 0:00:04.6]} 51... Kxc6 {[%clk 0:00:01.4]} 52. Nxe5+ {[%clk
0:00:05.5]} 52... Kc5 {[%clk 0:00:02.1]} 53. Nd3+ {[%clk 0:00:06]} 53... Kc4
{[%clk 0:00:02.3]} 54. Kc2 {[%clk 0:00:06.8]} 54... b4 {[%clk 0:00:01.9]} 55.
Nc1 {[%clk 0:00:06.8]} 55... b3+ {[%clk 0:00:02]} 56. Nxb3 {[%clk 0:00:06.5]}
56... Nb4+ {[%clk 0:00:02.9]} 57. Kb2 {[%clk 0:00:06.6]} 57... Nd3+ {[%clk
0:00:03.5]} 58. Ka3 {[%clk 0:00:07.5]} 58... Nxf2 {[%clk 0:00:04.2]} 1/2-1/2

[Event "Early-Titled-Tuesday-Blitz-October-24-2023"]
[Site "Chess.com"]
[Date "2023.10.24"]
[Round "8"]
[White "mind1mover"]
[Black "brm72"]
[Result "1-0"]
[WhiteElo "2808"]
[BlackElo "2574"]
[TimeControl "180+1"]
[EndTime "9:26:16 PDT"]
[Termination "mind1mover won by checkmate"]

1. Nf3 {[%clk 0:03:00.9]} 1... c5 {[%clk 0:02:59.6]} 2. b3 {[%clk 0:03:01.3]}
2... Nc6 {[%clk 0:02:58.6]} 3. Bb2 {[%clk 0:03:01.6]} 3... d6 {[%clk 0:02:58.8]}
4. d4 {[%clk 0:03:01.1]} 4... cxd4 {[%clk 0:02:58.2]} 5. Nxd4 {[%clk 0:03:02]}
5... e5 {[%clk 0:02:55.5]} 6. Nxc6 {[%clk 0:03:02]} 6... bxc6 {[%clk 0:02:56.4]}
7. c4 {[%clk 0:03:02.5]} 7... Nf6 {[%clk 0:02:55.9]} 8. g3 {[%clk 0:03:03]} 8...
g6 {[%clk 0:02:46.2]} 9. Bg2 {[%clk 0:03:02.4]} 9... Qc7 {[%clk 0:02:46.5]} 10.
Nc3 {[%clk 0:02:54.7]} 10... Bg7 {[%clk 0:02:45.4]} 11. Ba3 {[%clk 0:02:44.4]}
11... Bf8 {[%clk 0:02:33.8]} 12. O-O {[%clk 0:02:39.5]} 12... Be7 {[%clk
0:02:33.5]} 13. Nb5 {[%clk 0:02:35.5]} 13... cxb5 {[%clk 0:02:31]} 14. Bxa8
{[%clk 0:02:36.4]} 14... bxc4 {[%clk 0:02:31.2]} 15. Rc1 {[%clk 0:02:27.1]}
15... Be6 {[%clk 0:02:29.3]} 16. bxc4 {[%clk 0:02:22.2]} 16... O-O {[%clk
0:02:29.1]} 17. Bg2 {[%clk 0:02:21.9]} 17... Rb8 {[%clk 0:02:28]} 18. Rb1 {[%clk
0:02:08.1]} 18... Rxb1 {[%clk 0:02:24.1]} 19. Qxb1 {[%clk 0:02:09]} 19... Qxc4
{[%clk 0:02:24.4]} 20. Qb8+ {[%clk 0:02:04.1]} 20... Kg7 {[%clk 0:02:22.1]} 21.
Qxa7 {[%clk 0:02:01.2]} 21... Qxa2 {[%clk 0:02:18.9]} 22. Qxe7 {[%clk
0:01:49.3]} 22... Qxa3 {[%clk 0:02:18.5]} 23. Rd1 {[%clk 0:01:49]} 23... Qb2
{[%clk 0:02:14.8]} 24. Qxd6 {[%clk 0:01:36.8]} 24... Qxe2 {[%clk 0:02:13.6]} 25.
Bf1 {[%clk 0:01:31.4]} 25... Qe4 {[%clk 0:02:10]} 26. Qd3 {[%clk 0:01:23.5]}
26... Qc6 {[%clk 0:01:58.9]} 27. Bg2 {[%clk 0:01:21.8]} 27... Qc5 {[%clk
0:01:57.4]} 28. Qd6 {[%clk 0:01:18]} 28... Qc3 {[%clk 0:01:56.2]} 29. Qd2 {[%clk
0:01:14.5]} 29... Qc5 {[%clk 0:01:55.7]} 30. Qe3 {[%clk 0:01:12.1]} 30... Qxe3
{[%clk 0:01:50.7]} 31. fxe3 {[%clk 0:01:13]} 31... Ng4 {[%clk 0:01:50.1]} 32.
Re1 {[%clk 0:01:12.9]} 32... f5 {[%clk 0:01:49.5]} 33. h3 {[%clk 0:01:09.4]}
33... Nf6 {[%clk 0:01:47.9]} 34. Ra1 {[%clk 0:01:00.5]} 34... e4 {[%clk
0:01:46.2]} 35. Ra7+ {[%clk 0:00:56.6]} 35... Kg8 {[%clk 0:01:30.2]} 36. Bf1
{[%clk 0:00:56.5]} 36... Nd7 {[%clk 0:01:20.3]} 37. Bc4 {[%clk 0:00:50]} 37...
Nc5 {[%clk 0:01:15.6]} 38. Be2 {[%clk 0:00:33.1]} 38... Bf7 {[%clk 0:01:11.1]}
39. Rc7 {[%clk 0:00:28.9]} 39... Ne6 {[%clk 0:01:10.5]} 40. Ra7 {[%clk
0:00:27.2]} 40... h6 {[%clk 0:01:00.9]} 41. Bc4 {[%clk 0:00:24.7]} 41... Ng5
{[%clk 0:01:01.2]} 42. Bf1 {[%clk 0:00:22.7]} 42... Kg7 {[%clk 0:00:58.3]} 43.
h4 {[%clk 0:00:20.6]} 43... Nf3+ {[%clk 0:00:58.2]} 44. Kf2 {[%clk 0:00:20.8]}
44... Kf6 {[%clk 0:00:58.4]} 45. Ra6+ {[%clk 0:00:20.6]} 45... Kg7 {[%clk
0:00:57.4]} 46. Be2 {[%clk 0:00:19.2]} 46... Ne5 {[%clk 0:00:57.1]} 47. Ra5
{[%clk 0:00:18.3]} 47... Nc6 {[%clk 0:00:51.5]} 48. Rc5 {[%clk 0:00:18]} 48...
Nd8 {[%clk 0:00:49.2]} 49. Ke1 {[%clk 0:00:17.2]} 49... Ne6 {[%clk 0:00:49.3]}
50. Ra5 {[%clk 0:00:16.9]} 50... Kf6 {[%clk 0:00:48.6]} 51. Bc4 {[%clk
0:00:16.4]} 51... g5 {[%clk 0:00:48.6]} 52. hxg5+ {[%clk 0:00:09.8]} 52... hxg5
{[%clk 0:00:49.5]} 53. Ra6 {[%clk 0:00:10.1]} 53... Ke5 {[%clk 0:00:49.7]} 54.
Bxe6 {[%clk 0:00:09.7]} 54... Bxe6 {[%clk 0:00:49.7]} 55. Kd2 {[%clk 0:00:08]}
55... Bd5 {[%clk 0:00:48.6]} 56. Ra5 {[%clk 0:00:08.6]} 56... Ke6 {[%clk
0:00:48.1]} 57. Kc3 {[%clk 0:00:08.9]} 57... Kd6 {[%clk 0:00:45.5]} 58. Kd4
{[%clk 0:00:08.9]} 58... Be6 {[%clk 0:00:45]} 59. Ra6+ {[%clk 0:00:09.2]} 59...
Ke7 {[%clk 0:00:45.4]} 60. Ke5 {[%clk 0:00:09.7]} 60... Bc8 {[%clk 0:00:44.5]}
61. Rg6 {[%clk 0:00:05.6]} 61... g4 {[%clk 0:00:44.3]} 62. Rg7+ {[%clk
0:00:05.4]} 62... Kd8 {[%clk 0:00:43.7]} 63. Kd6 {[%clk 0:00:05.3]} 63... Ke8
{[%clk 0:00:43.9]} 64. Rg8+ {[%clk 0:00:05.7]} 64... Kf7 {[%clk 0:00:44.5]} 65.
Rxc8 {[%clk 0:00:06.5]} 65... Kf6 {[%clk 0:00:45]} 66. Rf8+ {[%clk 0:00:06.7]}
66... Kg6 {[%clk 0:00:45.5]} 67. Ke5 {[%clk 0:00:06.7]} 67... Kg7 {[%clk
0:00:45.5]} 68. Rxf5 {[%clk 0:00:06.8]} 68... Kg6 {[%clk 0:00:46.3]} 69. Kxe4
{[%clk 0:00:05.9]} 69... Kh6 {[%clk 0:00:45.8]} 70. Rf8 {[%clk 0:00:05.6]} 70...
Kg7 {[%clk 0:00:46.1]} 71. Rf5 {[%clk 0:00:05.4]} 71... Kg6 {[%clk 0:00:46.4]}
72. Kf4 {[%clk 0:00:06.2]} 72... Kh6 {[%clk 0:00:46.6]} 73. e4 {[%clk
0:00:06.9]} 73... Kg6 {[%clk 0:00:46.9]} 74. e5 {[%clk 0:00:07.6]} 74... Kh7
{[%clk 0:00:47.2]} 75. Kxg4 {[%clk 0:00:07.4]} 75... Kh6 {[%clk 0:00:48.1]} 76.
Kf4 {[%clk 0:00:08.3]} 76... Kg6 {[%clk 0:00:48.4]} 77. e6 {[%clk 0:00:09]}
77... Kh6 {[%clk 0:00:49.3]} 78. e7 {[%clk 0:00:09.6]} 78... Kg6 {[%clk
0:00:50.2]} 79. e8=Q+ {[%clk 0:00:10]} 79... Kh7 {[%clk 0:00:51.1]} 80. Qf7+
{[%clk 0:00:06.1]} 80... Kh6 {[%clk 0:00:52]} 81. Rh5# {[%clk 0:00:06.2]} 1-0